[Event "*** Qualifier 3: Titled Tuesday 3|2 Blitz"]
[Site "Chess.com"]
[Date "2017.04.18"]
[Round "1"]
[White "Bugcrusher"]
[Black "Rock700chess"]
[Result "1-0"]
[WhiteElo "2510"]
[BlackElo "2220"]
[TimeControl "180+2"]
[EndTime "13:06:46 PDT"]
[Termination "Bugcrusher won by resignation"]

1. d4 {[%clk 0:03:02]} 1... Nf6 {[%clk 0:02:59.5]} 2. c4 {[%clk 0:03:02.5]} 2...
e6 {[%clk 0:02:59.9]} 3. Nf3 {[%clk 0:03:01.2]} 3... Bb4+ {[%clk 0:03:01]} 4.
Nbd2 {[%clk 0:03:01]} 4... d5 {[%clk 0:03:01.4]} 5. Qa4+ {[%clk 0:02:55.8]} 5...
Nc6 {[%clk 0:02:56.7]} 6. e3 {[%clk 0:02:57.1]} 6... O-O {[%clk 0:02:54.5]} 7.
Qc2 {[%clk 0:02:57.4]} 7... a6 {[%clk 0:02:47.1]} 8. a3 {[%clk 0:02:55.2]} 8...
Ba5 {[%clk 0:02:42.2]} 9. b4 {[%clk 0:02:53]} 9... Bb6 {[%clk 0:02:43.8]} 10. c5
{[%clk 0:02:53.5]} 10... Ba7 {[%clk 0:02:45]} 11. Bd3 {[%clk 0:02:54.6]} 11...
h6 {[%clk 0:02:44]} 12. O-O {[%clk 0:02:54.9]} 12... Bd7 {[%clk 0:02:37.7]} 13.
Bb2 {[%clk 0:02:55.4]} 13... Ne7 {[%clk 0:02:36.3]} 14. Ne5 {[%clk 0:02:51.2]}
14... c6 {[%clk 0:02:27.4]} 15. f4 {[%clk 0:02:44.4]} 15... Nf5 {[%clk
0:02:24.5]} 16. Rae1 {[%clk 0:02:29.4]} 16... Bb8 {[%clk 0:02:22.6]} 17. e4
{[%clk 0:02:23.3]} 17... dxe4 {[%clk 0:02:21.3]} 18. Nxe4 {[%clk 0:02:24.4]}
18... Nxe4 {[%clk 0:02:20.9]} 19. Bxe4 {[%clk 0:02:25]} 19... Bxe5 {[%clk
0:02:17.5]} 20. dxe5 {[%clk 0:02:19.3]} 20... a5 {[%clk 0:02:18.4]} 21. Qc3
{[%clk 0:02:10.9]} 21... Ne7 {[%clk 0:02:16.7]} 22. Rd1 {[%clk 0:02:06.1]} 22...
Nd5 {[%clk 0:02:17.4]} 23. Bxd5 {[%clk 0:02:00]} 23... cxd5 {[%clk 0:02:18.9]}
24. f5 {[%clk 0:02:00.1]} 24... Ba4 {[%clk 0:02:11.7]} 25. Rd4 {[%clk 0:01:50]}
25... Bb5 {[%clk 0:02:07.2]} 26. Rf3 {[%clk 0:01:38.7]} 26... axb4 {[%clk
0:01:58.3]} 27. axb4 {[%clk 0:01:39.6]} 27... Qg5 {[%clk 0:01:53.9]} 28. h3
{[%clk 0:01:26.6]} 28... exf5 {[%clk 0:01:51]} 29. Rdf4 {[%clk 0:01:24.3]} 29...
Rae8 {[%clk 0:01:46.3]} 30. Rxf5 {[%clk 0:01:22.2]} 30... Qe7 {[%clk 0:01:41.1]}
31. Rg3 {[%clk 0:01:18.1]} 31... Qe6 {[%clk 0:01:40.8]} 32. Rf6 {[%clk
0:01:16.7]} 32... d4 {[%clk 0:01:42.4]} 33. Qxd4 {[%clk 0:01:12.1]} 33... Qc4
{[%clk 0:01:28.1]} 34. Qe3 {[%clk 0:01:04.3]} 34... Qh4 {[%clk 0:01:26.8]} 35.
Rxh6 {[%clk 0:00:55.9]} 1-0

[Event "*** Qualifier 3: Titled Tuesday 3|2 Blitz"]
[Site "Chess.com"]
[Date "2017.04.18"]
[Round "1"]
[White "Malev212"]
[Black "Wolverine_master"]
[Result "1-0"]
[WhiteElo "2412"]
[BlackElo "1980"]
[TimeControl "180+2"]
[EndTime "13:06:47 PDT"]
[Termination "Malev212 won on time"]

1. e4 {[%clk 0:03:02]} 1... d5 {[%clk 0:03:00.2]} 2. exd5 {[%clk 0:03:01.5]}
2... Qxd5 {[%clk 0:03:02.1]} 3. Nc3 {[%clk 0:03:01.5]} 3... Qd6 {[%clk
0:03:03.2]} 4. g3 {[%clk 0:03:01.4]} 4... Nf6 {[%clk 0:03:01.9]} 5. Bg2 {[%clk
0:03:01.8]} 5... a6 {[%clk 0:02:48.7]} 6. Nf3 {[%clk 0:03:00.2]} 6... Nc6 {[%clk
0:02:49.9]} 7. O-O {[%clk 0:02:59.8]} 7... Bg4 {[%clk 0:02:51.3]} 8. h3 {[%clk
0:02:59.9]} 8... Bh5 {[%clk 0:02:51.8]} 9. d3 {[%clk 0:02:50.1]} 9... O-O-O
{[%clk 0:02:44]} 10. Re1 {[%clk 0:02:41.3]} 10... e5 {[%clk 0:02:28.9]} 11. Be3
{[%clk 0:02:12.6]} 11... Be7 {[%clk 0:02:07.5]} 12. Qd2 {[%clk 0:02:12.2]} 12...
Nd4 {[%clk 0:01:43.1]} 13. Nxd4 {[%clk 0:01:53.6]} 13... exd4 {[%clk 0:01:39.2]}
14. Bxd4 {[%clk 0:01:51.7]} 14... Qxd4 {[%clk 0:01:27.4]} 15. Rxe7 {[%clk
0:01:51.8]} 15... Rhe8 {[%clk 0:01:13.1]} 16. Rae1 {[%clk 0:01:50.6]} 16... Rxe7
{[%clk 0:01:13.4]} 17. Rxe7 {[%clk 0:01:51]} 17... Re8 {[%clk 0:01:14.5]} 18.
Rxe8+ {[%clk 0:01:50.3]} 18... Nxe8 {[%clk 0:01:15.8]} 19. Qe3 {[%clk 0:01:45]}
19... Qxe3 {[%clk 0:01:02.9]} 20. fxe3 {[%clk 0:01:45.7]} 20... b5 {[%clk
0:01:01.8]} 21. b4 {[%clk 0:01:43.8]} 21... Nf6 {[%clk 0:00:45.6]} 22. Kf2
{[%clk 0:01:43.8]} 22... Nd7 {[%clk 0:00:43.4]} 23. Be4 {[%clk 0:01:30.3]} 23...
Bg6 {[%clk 0:00:28.3]} 24. Bxg6 {[%clk 0:01:29.1]} 24... hxg6 {[%clk 0:00:30.2]}
25. Ne4 {[%clk 0:01:27.2]} 25... Kb7 {[%clk 0:00:18.5]} 26. Ng5 {[%clk
0:01:22.5]} 26... Ne5 {[%clk 0:00:11.1]} 27. d4 {[%clk 0:01:21]} 1-0

[Event "*** Qualifier 3: Titled Tuesday 3|2 Blitz"]
[Site "Chess.com"]
[Date "2017.04.18"]
[Round "1"]
[White "hsskoo"]
[Black "andreimacovei2000"]
[Result "0-1"]
[WhiteElo "1953"]
[BlackElo "2403"]
[TimeControl "180+2"]
[EndTime "13:06:58 PDT"]
[Termination "andreimacovei2000 won by resignation"]

1. d4 {[%clk 0:02:40.2]} 1... Nf6 {[%clk 0:03:00.5]} 2. c4 {[%clk 0:02:40.3]}
2... e6 {[%clk 0:03:00.6]} 3. Nc3 {[%clk 0:02:40.4]} 3... Bb4 {[%clk 0:03:00.8]}
4. Bd2 {[%clk 0:02:40.3]} 4... O-O {[%clk 0:03:00]} 5. g3 {[%clk 0:02:41.2]}
5... d5 {[%clk 0:03:00.2]} 6. Bg2 {[%clk 0:02:41.9]} 6... dxc4 {[%clk 0:02:57]}
7. e3 {[%clk 0:02:42.3]} 7... Nbd7 {[%clk 0:02:48.8]} 8. Nf3 {[%clk 0:02:37.3]}
8... c6 {[%clk 0:02:39.5]} 9. a4 {[%clk 0:02:25.6]} 9... a6 {[%clk 0:02:30.1]}
10. O-O {[%clk 0:01:49.7]} 10... c5 {[%clk 0:02:29.5]} 11. Qc2 {[%clk 0:01:46]}
11... Qe7 {[%clk 0:02:26.4]} 12. Rad1 {[%clk 0:01:35.7]} 12... Rb8 {[%clk
0:02:24.1]} 13. e4 {[%clk 0:01:16.1]} 13... cxd4 {[%clk 0:02:23.6]} 14. Nxd4
{[%clk 0:01:15.5]} 14... Rd8 {[%clk 0:02:09.4]} 15. Rfe1 {[%clk 0:01:12]} 15...
Ne5 {[%clk 0:02:04.1]} 16. Bg5 {[%clk 0:00:47.5]} 16... h6 {[%clk 0:02:00.4]}
17. Bxf6 {[%clk 0:00:42.4]} 17... Qxf6 {[%clk 0:02:01.1]} 18. Nde2 {[%clk
0:00:40.2]} 18... Nd3 {[%clk 0:02:00.9]} 19. Rf1 {[%clk 0:00:39.8]} 19... b5
{[%clk 0:02:00.4]} 20. f4 {[%clk 0:00:38.3]} 20... Qe7 {[%clk 0:01:53.5]} 21. h3
{[%clk 0:00:37.6]} 21... Bb7 {[%clk 0:01:52.6]} 22. axb5 {[%clk 0:00:29.2]}
22... axb5 {[%clk 0:01:54.5]} 23. Nxb5 {[%clk 0:00:28.6]} 23... Qc5+ {[%clk
0:01:55.3]} 24. Nbd4 {[%clk 0:00:27.4]} 24... Rxd4 {[%clk 0:01:56.1]} 25. Nxd4
{[%clk 0:00:26.3]} 25... Qxd4+ {[%clk 0:01:56.9]} 26. Kh2 {[%clk 0:00:23.3]}
26... Bxe4 {[%clk 0:01:57.9]} 27. Bxe4 {[%clk 0:00:21.7]} 27... Qxe4 {[%clk
0:01:59.2]} 28. Rf2 {[%clk 0:00:20.3]} 28... Nxf2 {[%clk 0:01:57]} 29. Qxf2
{[%clk 0:00:19.3]} 29... Be7 {[%clk 0:01:55.5]} 30. Qc2 {[%clk 0:00:18.7]} 30...
Qxc2+ {[%clk 0:01:55.6]} 0-1

[Event "*** Qualifier 3: Titled Tuesday 3|2 Blitz"]
[Site "Chess.com"]
[Date "2017.04.18"]
[Round "1"]
[White "the_drake"]
[Black "Gabix_94"]
[Result "0-1"]
[WhiteElo "2186"]
[BlackElo "2504"]
[TimeControl "180+2"]
[EndTime "13:07:17 PDT"]
[Termination "Gabix_94 won by resignation"]

1. e4 {[%clk 0:02:50.6]} 1... c5 {[%clk 0:02:59.7]} 2. Nf3 {[%clk 0:02:50.4]}
2... e6 {[%clk 0:03:00.9]} 3. d4 {[%clk 0:02:49]} 3... cxd4 {[%clk 0:03:02.8]}
4. Nxd4 {[%clk 0:02:49.9]} 4... Nf6 {[%clk 0:03:03.9]} 5. Nc3 {[%clk 0:02:50.6]}
5... Qb6 {[%clk 0:03:04]} 6. Nb3 {[%clk 0:02:49.2]} 6... Bb4 {[%clk 0:03:03.4]}
7. Bd3 {[%clk 0:02:47.5]} 7... d6 {[%clk 0:03:04.2]} 8. O-O {[%clk 0:02:47.7]}
8... Bxc3 {[%clk 0:03:04.6]} 9. bxc3 {[%clk 0:02:48.1]} 9... O-O {[%clk
0:03:06.1]} 10. c4 {[%clk 0:02:48.9]} 10... e5 {[%clk 0:03:06.5]} 11. Be3 {[%clk
0:02:49.3]} 11... Qc6 {[%clk 0:03:06.5]} 12. c5 {[%clk 0:02:50.5]} 12... dxc5
{[%clk 0:02:54.8]} 13. Bxc5 {[%clk 0:02:45.2]} 13... Re8 {[%clk 0:02:55.7]} 14.
Qe2 {[%clk 0:02:43.8]} 14... a6 {[%clk 0:02:51.2]} 15. Ba3 {[%clk 0:02:38.1]}
15... Nbd7 {[%clk 0:02:46.7]} 16. Rab1 {[%clk 0:02:27.9]} 16... b6 {[%clk
0:02:46.6]} 17. Rfd1 {[%clk 0:02:22.6]} 17... Bb7 {[%clk 0:02:46.9]} 18. f3
{[%clk 0:02:17.4]} 18... Nf8 {[%clk 0:02:46.9]} 19. Bc4 {[%clk 0:02:14.6]} 19...
Rac8 {[%clk 0:02:43.7]} 20. Bd3 {[%clk 0:01:52.6]} 20... Ne6 {[%clk 0:02:35.2]}
21. c4 {[%clk 0:01:49.9]} 21... Nf4 {[%clk 0:02:34.8]} 22. Qe3 {[%clk
0:01:45.3]} 22... h6 {[%clk 0:02:29.9]} 23. Bf1 {[%clk 0:01:39.8]} 23... Kh7
{[%clk 0:02:24.2]} 24. c5 {[%clk 0:01:25.8]} 24... bxc5 {[%clk 0:02:21.8]} 25.
Nxc5 {[%clk 0:01:24]} 25... Ba8 {[%clk 0:02:18.6]} 26. Bxa6 {[%clk 0:01:19.2]}
26... Rb8 {[%clk 0:02:17.8]} 27. Bf1 {[%clk 0:01:14.7]} 27... Rxb1 {[%clk
0:02:04.8]} 28. Rxb1 {[%clk 0:01:16.6]} 28... Rd8 {[%clk 0:02:06.7]} 29. Nb3
{[%clk 0:01:02.7]} 29... Qc2 {[%clk 0:02:05.7]} 30. Rb2 {[%clk 0:00:55.2]} 30...
Qc7 {[%clk 0:02:00.1]} 31. Bb4 {[%clk 0:00:47.3]} 31... Rd1 {[%clk 0:02:00.6]}
32. Rd2 {[%clk 0:00:45.9]} 32... Rb1 {[%clk 0:02:01.3]} 33. Qc3 {[%clk
0:00:40.8]} 33... Qb8 {[%clk 0:01:56.9]} 34. Bd6 {[%clk 0:00:38.1]} 34... Qb5
{[%clk 0:01:55.8]} 35. Rf2 {[%clk 0:00:31]} 35... Rxf1+ {[%clk 0:01:55.8]} 36.
Rxf1 {[%clk 0:00:23.7]} 36... Ne2+ {[%clk 0:01:56.8]} 37. Kf2 {[%clk 0:00:23.9]}
37... Nxc3 {[%clk 0:01:58.7]} 38. Bxe5 {[%clk 0:00:25.7]} 38... Qe2+ {[%clk
0:01:59.2]} 0-1

[Event "*** Qualifier 3: Titled Tuesday 3|2 Blitz"]
[Site "Chess.com"]
[Date "2017.04.18"]
[Round "1"]
[White "chesstatour"]
[Black "nurmiTV"]
[Result "0-1"]
[WhiteElo "1970"]
[BlackElo "2404"]
[TimeControl "180+2"]
[EndTime "13:07:25 PDT"]
[Termination "nurmiTV won on time"]

1. e4 {[%clk 0:03:02]} 1... c5 {[%clk 0:03:00.5]} 2. Nf3 {[%clk 0:03:02.3]} 2...
e6 {[%clk 0:03:01.7]} 3. d4 {[%clk 0:03:03.9]} 3... cxd4 {[%clk 0:03:03.6]} 4.
Nxd4 {[%clk 0:03:05.3]} 4... a6 {[%clk 0:03:05.3]} 5. Be2 {[%clk 0:03:06]} 5...
Qc7 {[%clk 0:03:06]} 6. O-O {[%clk 0:03:06.8]} 6... Nf6 {[%clk 0:03:06.9]} 7.
Nc3 {[%clk 0:03:06.1]} 7... Be7 {[%clk 0:03:05.6]} 8. Bg5 {[%clk 0:03:05.1]}
8... d6 {[%clk 0:03:05.3]} 9. Kh1 {[%clk 0:03:06.2]} 9... O-O {[%clk 0:03:06.1]}
10. Qd2 {[%clk 0:03:05.5]} 10... Nc6 {[%clk 0:03:05.2]} 11. Rad1 {[%clk
0:03:03.4]} 11... Rd8 {[%clk 0:03:04.4]} 12. f4 {[%clk 0:03:03.9]} 12... Bd7
{[%clk 0:02:57.9]} 13. Bf3 {[%clk 0:02:50.4]} 13... Rac8 {[%clk 0:02:57.1]} 14.
Qf2 {[%clk 0:02:49.4]} 14... h6 {[%clk 0:02:52.4]} 15. Bh4 {[%clk 0:02:48.9]}
15... Qa5 {[%clk 0:02:31.4]} 16. a3 {[%clk 0:02:33.4]} 16... b5 {[%clk
0:02:09.5]} 17. Nxc6 {[%clk 0:02:14.2]} 17... Bxc6 {[%clk 0:02:09.9]} 18. e5
{[%clk 0:02:15.2]} 18... Nd5 {[%clk 0:01:37.7]} 19. Bxe7 {[%clk 0:02:06.4]}
19... Nxe7 {[%clk 0:01:39.6]} 20. exd6 {[%clk 0:02:03.7]} 20... Nf5 {[%clk
0:01:39.4]} 21. Bxc6 {[%clk 0:01:59.8]} 21... Rxc6 {[%clk 0:01:41.3]} 22. Ne4
{[%clk 0:01:26.6]} 22... Nxd6 {[%clk 0:01:39.8]} 23. Nxd6 {[%clk 0:01:27.2]}
23... Rcxd6 {[%clk 0:01:41.7]} 24. Rxd6 {[%clk 0:01:19.6]} 24... Rxd6 {[%clk
0:01:43.6]} 25. f5 {[%clk 0:01:21.2]} 25... Qc7 {[%clk 0:01:21.4]} 26. fxe6
{[%clk 0:00:47.2]} 26... Rxe6 {[%clk 0:01:23.3]} 27. Rd1 {[%clk 0:00:33.3]}
27... g6 {[%clk 0:01:12.3]} 28. h3 {[%clk 0:00:33.6]} 28... h5 {[%clk
0:01:11.9]} 29. c3 {[%clk 0:00:29.2]} 29... Qe7 {[%clk 0:01:12]} 30. Qd4 {[%clk
0:00:18.9]} 30... Kh7 {[%clk 0:01:05.6]} 31. Qd2 {[%clk 0:00:06.3]} 31... Re2
{[%clk 0:01:04.2]} 32. Qd4 {[%clk 0:00:04.5]} 32... Rxb2 {[%clk 0:01:00.6]} 33.
Rf1 {[%clk 0:00:05.3]} 33... Kg8 {[%clk 0:01:00.9]} 0-1

[Event "*** Qualifier 3: Titled Tuesday 3|2 Blitz"]
[Site "Chess.com"]
[Date "2017.04.18"]
[Round "1"]
[White "tigra"]
[Black "DavidMarkosyan"]
[Result "1-0"]
[WhiteElo "2614"]
[BlackElo "2320"]
[TimeControl "180+2"]
[EndTime "13:07:29 PDT"]
[Termination "tigra won by resignation"]

1. e4 {[%clk 0:02:55.8]} 1... d6 {[%clk 0:03:00.1]} 2. d4 {[%clk 0:02:56.5]}
2... Nf6 {[%clk 0:03:00.8]} 3. Nc3 {[%clk 0:02:57.2]} 3... e5 {[%clk 0:03:02.1]}
4. Nf3 {[%clk 0:02:57.7]} 4... Nbd7 {[%clk 0:03:02.5]} 5. Bc4 {[%clk 0:02:59.3]}
5... Be7 {[%clk 0:03:03.1]} 6. a4 {[%clk 0:03:00.5]} 6... O-O {[%clk 0:03:03.5]}
7. O-O {[%clk 0:03:01.5]} 7... a5 {[%clk 0:03:04.3]} 8. h3 {[%clk 0:03:01.2]}
8... c6 {[%clk 0:03:05.4]} 9. Re1 {[%clk 0:03:01.9]} 9... exd4 {[%clk
0:03:04.4]} 10. Nxd4 {[%clk 0:03:02.3]} 10... d5 {[%clk 0:03:00.4]} 11. exd5
{[%clk 0:03:01.3]} 11... Nb6 {[%clk 0:03:02]} 12. Bb3 {[%clk 0:03:02.1]} 12...
Nbxd5 {[%clk 0:03:02.8]} 13. Nxd5 {[%clk 0:03:02.7]} 13... Nxd5 {[%clk
0:03:03.5]} 14. Bxd5 {[%clk 0:03:03.3]} 14... cxd5 {[%clk 0:03:04.6]} 15. Bf4
{[%clk 0:02:51.3]} 15... Bf6 {[%clk 0:03:02.2]} 16. Be5 {[%clk 0:02:50.2]} 16...
Bxe5 {[%clk 0:02:59.4]} 17. Rxe5 {[%clk 0:02:50.5]} 17... Qd6 {[%clk 0:03:00.7]}
18. Qe1 {[%clk 0:02:41.1]} 18... Bd7 {[%clk 0:03:00.2]} 19. b3 {[%clk
0:02:31.2]} 19... Rfe8 {[%clk 0:03:00.2]} 20. Rxe8+ {[%clk 0:02:31.2]} 20...
Bxe8 {[%clk 0:02:59.2]} 21. Qc3 {[%clk 0:02:31.5]} 21... Bd7 {[%clk 0:02:58.2]}
22. Re1 {[%clk 0:02:31.3]} 22... b6 {[%clk 0:02:58.9]} 23. Re3 {[%clk
0:02:04.7]} 23... g6 {[%clk 0:02:58.3]} 24. Qe1 {[%clk 0:02:04.1]} 24... Qb4
{[%clk 0:02:50.5]} 25. Qxb4 {[%clk 0:01:54.7]} 25... axb4 {[%clk 0:02:50.5]} 26.
Re5 {[%clk 0:01:55.1]} 26... Ra5 {[%clk 0:02:42.3]} 27. Re7 {[%clk 0:01:55.4]}
27... Bf5 {[%clk 0:02:31.9]} 28. g4 {[%clk 0:01:45.1]} 28... Be6 {[%clk
0:02:30.8]} 29. Nxe6 {[%clk 0:01:14.5]} 29... fxe6 {[%clk 0:02:30.9]} 30. Rxe6
{[%clk 0:01:16.4]} 30... b5 {[%clk 0:02:25.3]} 31. axb5 {[%clk 0:01:17.3]} 31...
Rxb5 {[%clk 0:02:25.9]} 32. Rc6 {[%clk 0:01:16]} 32... Kf7 {[%clk 0:02:17.7]}
33. Kf1 {[%clk 0:01:15.3]} 33... h5 {[%clk 0:02:11.3]} 34. Ke2 {[%clk 0:01:10]}
34... hxg4 {[%clk 0:02:11.8]} 35. hxg4 {[%clk 0:01:11.9]} 35... g5 {[%clk
0:02:08.8]} 36. Ke3 {[%clk 0:01:11.8]} 36... Ra5 {[%clk 0:02:04.8]} 37. Kd4
{[%clk 0:01:12.5]} 37... Ra1 {[%clk 0:02:02.3]} 38. Kxd5 {[%clk 0:01:02.4]}
38... Rf1 {[%clk 0:02:03]} 39. Kc5 {[%clk 0:01:03.1]} 39... Rxf2 {[%clk
0:02:03.4]} 40. Kxb4 {[%clk 0:01:04.1]} 40... Rf4+ {[%clk 0:01:59.5]} 41. Rc4
{[%clk 0:01:04.7]} 41... Rf2 {[%clk 0:02:00.7]} 42. Kb5 {[%clk 0:01:05.2]} 42...
Ke6 {[%clk 0:02:01.8]} 43. b4 {[%clk 0:01:06.3]} 43... Kd5 {[%clk 0:02:02.5]}
44. c3 {[%clk 0:01:07]} 44... Rg2 {[%clk 0:02:01.5]} 45. Rd4+ {[%clk 0:01:08]}
45... Ke5 {[%clk 0:02:02.9]} 46. Kc5 {[%clk 0:01:08.6]} 46... Rc2 {[%clk
0:02:02.4]} 47. c4 {[%clk 0:01:09.4]} 47... Ra2 {[%clk 0:02:03.3]} 48. b5 {[%clk
0:01:10.6]} 48... Ra8 {[%clk 0:02:03.8]} 49. Rd6 {[%clk 0:01:01.2]} 49... Kf4
{[%clk 0:02:02.2]} 50. b6 {[%clk 0:01:02.1]} 50... Kxg4 {[%clk 0:02:02.8]} 51.
b7 {[%clk 0:01:03.1]} 51... Rb8 {[%clk 0:02:01.8]} 52. Kb6 {[%clk 0:01:04.1]}
52... Kf5 {[%clk 0:02:03.3]} 53. c5 {[%clk 0:01:05.1]} 53... g4 {[%clk
0:02:03.2]} 54. c6 {[%clk 0:01:05.8]} 54... g3 {[%clk 0:02:04.3]} 55. c7 {[%clk
0:01:07]} 55... g2 {[%clk 0:02:04.6]} 56. c8=Q+ {[%clk 0:01:05.7]} 1-0

[Event "*** Qualifier 3: Titled Tuesday 3|2 Blitz"]
[Site "Chess.com"]
[Date "2017.04.18"]
[Round "1"]
[White "kikydu96"]
[Black "MITerryble"]
[Result "0-1"]
[WhiteElo "2342"]
[BlackElo "2658"]
[TimeControl "180+2"]
[EndTime "13:07:36 PDT"]
[Termination "MITerryble won by resignation"]

1. e4 {[%clk 0:03:02]} 1... e6 {[%clk 0:02:59.3]} 2. d4 {[%clk 0:03:02.8]} 2...
d5 {[%clk 0:03:00.1]} 3. Nc3 {[%clk 0:03:03.2]} 3... Nf6 {[%clk 0:03:01.2]} 4.
e5 {[%clk 0:03:04.7]} 4... Nfd7 {[%clk 0:03:01.8]} 5. f4 {[%clk 0:03:06.3]} 5...
c5 {[%clk 0:03:02.8]} 6. Nf3 {[%clk 0:03:07.8]} 6... Nc6 {[%clk 0:03:03.9]} 7.
Be3 {[%clk 0:03:07.6]} 7... Be7 {[%clk 0:03:05.2]} 8. Qd2 {[%clk 0:02:58.4]}
8... O-O {[%clk 0:03:05.4]} 9. dxc5 {[%clk 0:02:58.5]} 9... Bxc5 {[%clk
0:03:02.9]} 10. O-O-O {[%clk 0:02:38.8]} 10... Qa5 {[%clk 0:03:02.7]} 11. a3
{[%clk 0:02:37.8]} 11... Rd8 {[%clk 0:02:56.8]} 12. Kb1 {[%clk 0:02:28.9]} 12...
Bf8 {[%clk 0:02:18.2]} 13. Bd3 {[%clk 0:02:02.2]} 13... Rb8 {[%clk 0:02:18.7]}
14. Bxh7+ {[%clk 0:01:38]} 14... Kxh7 {[%clk 0:02:18.1]} 15. Ng5+ {[%clk
0:01:39.2]} 15... Kg8 {[%clk 0:02:19.1]} 16. Qd3 {[%clk 0:01:39.6]} 16... g6
{[%clk 0:02:19.3]} 17. Bd2 {[%clk 0:01:35.4]} 17... Bg7 {[%clk 0:01:47.4]} 18.
Nb5 {[%clk 0:01:10.7]} 18... Qa6 {[%clk 0:01:46.6]} 19. a4 {[%clk 0:00:58.5]}
19... Nf8 {[%clk 0:01:19.5]} 20. h4 {[%clk 0:00:52.3]} 20... Qxa4 {[%clk
0:01:20.2]} 21. h5 {[%clk 0:00:51.8]} 21... Qc4 {[%clk 0:01:20.9]} 22. hxg6
{[%clk 0:00:50.1]} 22... fxg6 {[%clk 0:01:13.6]} 23. Qh3 {[%clk 0:00:20.6]}
23... Qxb5 {[%clk 0:01:08.6]} 24. Rh2 {[%clk 0:00:21.6]} 24... Qe2 {[%clk
0:01:01.2]} 25. Rdh1 {[%clk 0:00:21.5]} 25... Qxd2 {[%clk 0:00:56.7]} 26. Nh7
{[%clk 0:00:06]} 26... Nxh7 {[%clk 0:00:51.4]} 27. Qxh7+ {[%clk 0:00:07.3]}
27... Kf7 {[%clk 0:00:52.7]} 28. Rh6 {[%clk 0:00:07.2]} 28... Qxg2 {[%clk
0:00:53.1]} 29. R1h2 {[%clk 0:00:06.8]} 29... Qg1+ {[%clk 0:00:54.2]} 30. Ka2
{[%clk 0:00:08]} 30... Rh8 {[%clk 0:00:52.7]} 31. Qxg7+ {[%clk 0:00:06.8]} 31...
Kxg7 {[%clk 0:00:53.3]} 32. Rxh8 {[%clk 0:00:08.7]} 32... Qxh2 {[%clk
0:00:54.3]} 33. Rxh2 {[%clk 0:00:09]} 33... Bd7 {[%clk 0:00:55.6]} 0-1

[Event "*** Qualifier 3: Titled Tuesday 3|2 Blitz"]
[Site "Chess.com"]
[Date "2017.04.18"]
[Round "1"]
[White "superjem123"]
[Black "stefanodinn"]
[Result "1-0"]
[WhiteElo "2505"]
[BlackElo "2185"]
[TimeControl "180+2"]
[EndTime "13:07:39 PDT"]
[Termination "superjem123 won by resignation"]

1. d4 {[%clk 0:02:56.4]} 1... Nf6 {[%clk 0:02:59.3]} 2. c4 {[%clk 0:02:57.7]}
2... e6 {[%clk 0:02:59.2]} 3. Nf3 {[%clk 0:02:57.9]} 3... d5 {[%clk 0:02:58.5]}
4. Nc3 {[%clk 0:02:56.6]} 4... Be7 {[%clk 0:02:50.7]} 5. Bf4 {[%clk 0:02:52.7]}
5... O-O {[%clk 0:02:43.7]} 6. e3 {[%clk 0:02:52.1]} 6... Nbd7 {[%clk
0:02:42.6]} 7. Be2 {[%clk 0:02:46.1]} 7... dxc4 {[%clk 0:02:10.2]} 8. Bxc4
{[%clk 0:02:46.4]} 8... a6 {[%clk 0:02:10.9]} 9. a4 {[%clk 0:02:42.4]} 9... c5
{[%clk 0:01:58.4]} 10. O-O {[%clk 0:02:42.5]} 10... cxd4 {[%clk 0:01:41.7]} 11.
exd4 {[%clk 0:02:44.4]} 11... Nb6 {[%clk 0:01:38.4]} 12. Bd3 {[%clk 0:02:44.6]}
12... Nbd5 {[%clk 0:01:38.8]} 13. Bd2 {[%clk 0:02:43.9]} 13... b6 {[%clk
0:01:35.7]} 14. Ne5 {[%clk 0:02:42.6]} 14... Bb7 {[%clk 0:01:36.4]} 15. Ne4
{[%clk 0:02:27.4]} 15... Rc8 {[%clk 0:00:49.1]} 16. Qf3 {[%clk 0:02:18.9]} 16...
a5 {[%clk 0:00:25.9]} 17. Rad1 {[%clk 0:02:14.2]} 17... Rc7 {[%clk 0:00:26]} 18.
Rfe1 {[%clk 0:02:13.5]} 18... Nb4 {[%clk 0:00:24.8]} 19. Bc3 {[%clk 0:01:57]}
19... Nxd3 {[%clk 0:00:24.2]} 20. Nxf6+ {[%clk 0:01:56.3]} 20... gxf6 {[%clk
0:00:21.4]} 21. Qxd3 {[%clk 0:01:51.9]} 21... fxe5 {[%clk 0:00:20.4]} 22. d5
{[%clk 0:01:42.7]} 22... Bf6 {[%clk 0:00:13.7]} 23. Rxe5 {[%clk 0:01:41]} 23...
Bxd5 {[%clk 0:00:08.8]} 24. Rxd5 {[%clk 0:01:14.2]} 24... exd5 {[%clk
0:00:06.2]} 25. Bxf6 {[%clk 0:00:48.7]} 25... Qxf6 {[%clk 0:00:04.9]} 26. Qg3+
{[%clk 0:00:50.6]} 26... Kh8 {[%clk 0:00:04.7]} 27. Qxc7 {[%clk 0:00:52.5]}
27... Rd8 {[%clk 0:00:05.3]} 28. h3 {[%clk 0:00:47.5]} 28... d4 {[%clk
0:00:06.3]} 29. Rd3 {[%clk 0:00:48.3]} 29... Qd6 {[%clk 0:00:05.8]} 30. Qxf7
{[%clk 0:00:46.5]} 30... Qb4 {[%clk 0:00:04.5]} 31. Qf6+ {[%clk 0:00:45.7]} 1-0